[Event "Queens Festival Final-D 2022"]
[Site "Tornelo"]
[Date "2022.06.25"]
[Round "8.3"]
[White "Shriyan santosh Priyasha"]
[Black "Rozas Lazcano, Valeska"]
[Result "0-1"]
[ECO "A43"]
[WhiteElo "1597"]
[BlackElo "1551"]
[Annotator "NA RC"]
[PlyCount "78"]
[EventDate "2022.06.24"]
[EventType "tourn"]
[EventCountry "NET"]
[SourceTitle "playchess.com"]
[Source "ChessBase"]
[SourceQuality "1"]
[TimeControl "180+2"]

1. Nf3 {[%emt 0:00:02]} c5 {[%emt 0:00:05]} 2. d4 {[%emt 0:00:02]} cxd4 {[%emt 0:00:02]} 3. Nxd4 {[%emt 0:00:00]} e6 {[%emt 0:00:02]} 4. c4 {[%emt 0:00:02]} a6 {[%emt 0:00:01]} 5. Nc3 {[%emt 0:00:02]} Qc7 {[%emt 0:00:01]} 6. e3 {[%emt 0:00:13]} Be7 {[%emt 0:00:02]} 7. Be2 {[%emt 0:00:03]} d6 {[%emt 0:00:01]} 8. O-O {[%emt 0:00:02]} Nf6 {[%emt 0:00:02]} 9. a3 {[%emt 0:00:02]} Nbd7 {[%emt 0:00:02]} 10. b4 {[%emt 0:00:07]} b6 {[%emt 0:00:02]} 11. Bb2 {[%emt 0:00:03]} Bb7 {[%emt 0:00:01]} 12. Rc1 {[%emt 0:00:07]} Rc8 {[%emt 0:00:03]} 13. Qd3 {[%emt 0:00:31]} Qb8 {[%emt 0:00:05]} 14. Nf3 {[%emt 0:00:09]} Ng4 {[%emt 0:00:13]} 15. Na4 {[%emt 0:00:26]} f6 {[%emt 0:00:50]} 16. e4 {[%emt 0:00:16]} O-O {[%emt 0:00:30]} 17. h3 {[%emt 0:00:06]} Nge5 {[%emt 0:00:03]} 18. Nxe5 {[%emt 0:00:09]} Nxe5 {[%emt 0:00:01]} 19. Bxe5 {[%emt 0:00:25]} dxe5 {[%emt 0:00:02]} 20. Nxb6 {[%emt 0:00:25]} Rcd8 {[%emt 0:00:12]} 21. Qe3 {[%emt 0:00:07]} Bxe4 {[%emt 0:00:48]} 22. Qxe4 {[%emt 0:00:15]} Qxb6 {[%emt 0:00:02]} 23. c5 {[%emt 0:00:02]} Qa7 {[%emt 0:00:02]} 24. Bc4 {[%emt 0:00:02]} Kh8 {[%emt 0:00:05]} 25. Bxe6 {[%emt 0:00:02]} Rd4 {[%emt 0:00:01]} 26. Qe2 {[%emt 0:00:03]} Rfd8 {[%emt 0:00:03]} 27. Bc4 {[%emt 0:00:03]} a5 {[%emt 0:00:03]} 28. Rfd1 {[%emt 0:00:02]} axb4 {[%emt 0:00:04]} 29. axb4 {[%emt 0:00:02]} Qb8 {[%emt 0:00:02]} 30. Rxd4 {[%emt 0:00:02]} Rxd4 {[%emt 0:00:01]} 31. Rb1 {[%emt 0:00:04]} Bxc5 {[%emt 0:00:02]} 32. Bd3 {[%emt 0:00:04]} Bf8 {[%emt 0:00:03]} 33. Bc2 {[%emt 0:00:02]} Rxb4 {[%emt 0:00:03]} 34. Qd3 {[%emt 0:00:04]} g6 {[%emt 0:00:02]} 35. Rxb4 {[%emt 0:00:03]} Qxb4 {[%emt 0:00:02]} 36. Qd8 {[%emt 0:00:02]} Kg7 {[%emt 0:00:02]} 37. Qd7+ {[%emt 0:00:01]} Be7 {[%emt 0:00:02]} 38. Qd3 {[%emt 0:00:04]} Qe1+ {[%emt 0:00:03]} 39. Kh2 {[%emt 0:00:02]} Qxf2 {[%emt 0:00:01]} 0-1

[Event "Queens Festival Final-D 2022"]
[Site "Tornelo"]
[Date "2022.06.25"]
[Round "8.4"]
[White "Aydogan, Arya"]
[Black "Rajaram, Anika"]
[Result "0-1"]
[ECO "B50"]
[WhiteElo "1409"]
[BlackElo "1499"]
[Annotator "NA RC"]
[PlyCount "136"]
[EventDate "2022.06.24"]
[EventType "tourn"]
[EventCountry "NET"]
[SourceTitle "playchess.com"]
[Source "ChessBase"]
[SourceQuality "1"]
[TimeControl "180+2"]

1. e4 {[%emt 0:00:02]} c5 {[%emt 0:00:04]} 2. Nf3 {[%emt 0:00:02]} e6 {[%emt 0:00:02]} 3. c3 {[%emt 0:00:01]} Nf6 {[%emt 0:00:01]} 4. Bd3 {[%emt 0:00:02]} d6 {[%emt 0:00:04]} 5. Bc2 {[%emt 0:00:01]} Nc6 {[%emt 0:00:02]} 6. a3 {[%emt 0:00:02]} Be7 {[%emt 0:00:03]} 7. O-O {[%emt 0:00:02]} O-O {[%emt 0:00:02]} 8. d4 {[%emt 0:00:01]} cxd4 {[%emt 0:00:02]} 9. cxd4 {[%emt 0:00:01]} Qc7 {[%emt 0:00:03]} 10. Nc3 {[%emt 0:00:03]} a6 {[%emt 0:00:03]} 11. Be3 {[%emt 0:00:02]} Bd7 {[%emt 0:00:09]} 12. Rc1 {[%emt 0:00:03]} Ng4 {[%emt 0:00:10]} 13. Bd2 {[%emt 0:00:04]} Qd8 {[%emt 0:00:16]} 14. h3 {[%emt 0:00:03]} Nf6 {[%emt 0:00:02]} 15. Be3 {[%emt 0:00:03]} Rc8 {[%emt 0:00:04]} 16. Qd3 {[%emt 0:00:04]} e5 {[%emt 0:00:11]} 17. Rfd1 {[%emt 0:00:20]} exd4 {[%emt 0:00:33]} 18. Nxd4 {[%emt 0:00:03]} Ne5 {[%emt 0:00:02]} 19. Qe2 {[%emt 0:00:06]} Nc4 {[%emt 0:00:09]} 20. Bb1 {[%emt 0:00:01]} b5 {[%emt 0:00:09]} 21. Bf4 {[%emt 0:00:10]} Qb6 {[%emt 0:00:12]} 22. Nf3 {[%emt 0:00:20]} Rfd8 {[%emt 0:00:14]} 23. Ne1 {[%emt 0:00:29]} Be6 {[%emt 0:00:08]} 24. Nd3 {[%emt 0:00:04]} h6 {[%emt 0:00:09]} 25. Nb4 {[%emt 0:00:07]} a5 {[%emt 0:00:15]} 26. Nbd5 {[%emt 0:00:03]} Bxd5 {[%emt 0:00:05]} 27. Nxd5 {[%emt 0:00:02]} Nxd5 {[%emt 0:00:01]} 28. Rxd5 {[%emt 0:00:06]} Bf6 {[%emt 0:00:09]} 29. Rc2 {[%emt 0:00:12]} Be5 {[%emt 0:00:10]} 30. Bxe5 {[%emt 0:00:09]} Nxe5 {[%emt 0:00:01]} 31. Rxc8 {[%emt 0:00:10]} Rxc8 {[%emt 0:00:02]} 32. Qd2 {[%emt 0:00:03]} Nc4 {[%emt 0:00:06]} 33. Qc1 {[%emt 0:00:13]} Qb7 {[%emt 0:00:07]} 34. b3 {[%emt 0:00:05]} Nb6 {[%emt 0:00:01]} 35. Qd2 {[%emt 0:00:08]} Nxd5 {[%emt 0:00:02]} 36. exd5 {[%emt 0:00:00]} Qc7 {[%emt 0:00:02]} 37. Bd3 {[%emt 0:00:03]} Qc1+ {[%emt 0:00:02]} 38. Qxc1 {[%emt 0:00:01]} Rxc1+ {[%emt 0:00:02]} 39. Kh2 {[%emt 0:00:01]} Rc5 {[%emt 0:00:03]} 40. Be4 {[%emt 0:00:05]} Rc3 {[%emt 0:00:01]} 41. b4 {[%emt 0:00:02]} axb4 {[%emt 0:00:01]} 42. axb4 {[%emt 0:00:02]} Rc4 {[%emt 0:00:01]} 43. Bf3 {[%emt 0:00:01]} Rxb4 {[%emt 0:00:01]} 44. Kg3 {[%emt 0:00:01]} Rb1 {[%emt 0:00:03]} 45. Be4 {[%emt 0:00:03]} Ra1 {[%emt 0:00:02]} 46. Kf3 {[%emt 0:00:02]} Rc1 {[%emt 0:00:02]} 47. Ke2 {[%emt 0:00:02]} b4 {[%emt 0:00:02]} 48. Kd2 {[%emt 0:00:02]} Rc4 {[%emt 0:00:02]} 49. Kd3 {[%emt 0:00:11]} Rc5 {[%emt 0:00:04]} 50. Kd4 {[%emt 0:00:03]} Kf8 {[%emt 0:00:05]} 51. f4 {[%emt 0:00:04]} b3 {[%emt 0:00:03]} 52. g4 {[%emt 0:00:05]} b2 {[%emt 0:00:01]} 53. f5 {[%emt 0:00:07]} Rc1 {[%emt 0:00:02]} 54. h4 {[%emt 0:00:02]} b1=Q {[%emt 0:00:02]} 55. Bxb1 {[%emt 0:00:01]} Rxb1 {[%emt 0:00:01]} 56. g5 {[%emt 0:00:01]} Rb4+ {[%emt 0:00:04]} 57. Kd3 {[%emt 0:00:02]} Rxh4 {[%emt 0:00:01]} 58. gxh6 {[%emt 0:00:01]} gxh6 {[%emt 0:00:01]} 59. Ke3 {[%emt 0:00:01]} Rg4 {[%emt 0:00:01]} 60. Kf3 {[%emt 0:00:02]} Rg8 {[%emt 0:00:02]} 61. Kf4 {[%emt 0:00:01]} h5 {[%emt 0:00:00]} 62. f6 {[%emt 0:00:02]} h4 {[%emt 0:00:01]} 63. Kf5 {[%emt 0:00:01]} h3 {[%emt 0:00:01]} 64. Ke4 {[%emt 0:00:00]} h2 {[%emt 0:00:01]} 65. Kf3 {[%emt 0:00:01]} h1=Q+ {[%emt 0:00:02]} 66. Kf2 {[%emt 0:00:01]} Qh2+ {[%emt 0:00:02]} 67. Ke3 {[%emt 0:00:02]} Rg3+ {[%emt 0:00:01]} 68. Kd4 {[%emt 0:00:01]} Qh4# {[%emt 0:00:02]} 0-1

[Event "Queens Festival Final-D 2022"]
[Site "Tornelo"]
[Date "2022.06.25"]
[Round "8.5"]
[White "Vujovic, Vera"]
[Black "Bakhshizada, Asnad"]
[Result "1-0"]
[ECO "C14"]
[WhiteElo "1353"]
[BlackElo "1052"]
[Annotator "NA RC"]
[PlyCount "115"]
[EventDate "2022.06.24"]
[EventType "tourn"]
[EventCountry "NET"]
[SourceTitle "playchess.com"]
[Source "ChessBase"]
[SourceQuality "1"]
[TimeControl "180+2"]

1. e4 {[%emt 0:00:02]} e6 {[%emt 0:00:04]} 2. d4 {[%emt 0:00:02]} d5 {[%emt 0:00:02]} 3. Nc3 {[%emt 0:00:01]} Nf6 {[%emt 0:00:02]} 4. Bg5 {[%emt 0:00:04]} Be7 {[%emt 0:00:04]} 5. e5 {[%emt 0:00:02]} Nfd7 {[%emt 0:00:02]} 6. Bxe7 {[%emt 0:00:01]} Qxe7 {[%emt 0:00:01]} 7. f4 {[%emt 0:00:01]} c5 {[%emt 0:00:02]} 8. Nf3 {[%emt 0:00:02]} Nc6 {[%emt 0:00:01]} 9. Bb5 {[%emt 0:00:06]} cxd4 {[%emt 0:00:05]} 10. Nxd4 {[%emt 0:00:06]} Qc5 {[%emt 0:00:04]} 11. Bxc6 {[%emt 0:00:08]} bxc6 {[%emt 0:00:04]} 12. O-O {[%emt 0:00:02]} O-O {[%emt 0:00:07]} 13. Kh1 {[%emt 0:00:03]} Bb7 {[%emt 0:00:06]} 14. Nb3 {[%emt 0:00:04]} Qb6 {[%emt 0:00:05]} 15. Qg4 {[%emt 0:00:04]} Qd8 {[%emt 0:00:08]} 16. Rf3 {[%emt 0:00:04]} Qe7 {[%emt 0:00:03]} 17. Rg3 {[%emt 0:00:13]} f6 {[%emt 0:00:02]} 18. Nd4 {[%emt 0:00:27]} Rae8 {[%emt 0:00:13]} 19. Nxe6 {[%emt 0:00:06]} Rf7 {[%emt 0:00:13]} 20. Nc7 {[%emt 0:00:04]} Rc8 {[%emt 0:00:07]} 21. e6 {[%emt 0:00:01]} Rff8 {[%emt 0:00:03]} 22. N7xd5 {[%emt 0:00:18]} cxd5 {[%emt 0:00:09]} 23. exd7 {[%emt 0:00:01]} Rcd8 {[%emt 0:00:03]} 24. Ne2 {[%emt 0:00:13]} Rxd7 {[%emt 0:00:07]} 25. Nd4 {[%emt 0:00:03]} Bc8 {[%emt 0:00:22]} 26. Nf5 {[%emt 0:00:03]} Qe4 {[%emt 0:00:38]} 27. Nxg7 {[%emt 0:00:07]} Kh8 {[%emt 0:00:07]} 28. Nh5 {[%emt 0:00:23]} Re7 {[%emt 0:00:06]} 29. Qf3 {[%emt 0:00:11]} Qe1+ {[%emt 0:00:20]} 30. Qf1 {[%emt 0:00:03]} Qxf1+ {[%emt 0:00:09]} 31. Rxf1 {[%emt 0:00:02]} Bf5 {[%emt 0:00:05]} 32. c3 {[%emt 0:00:05]} Rb7 {[%emt 0:00:06]} 33. b3 {[%emt 0:00:03]} Re7 {[%emt 0:00:02]} 34. Kg1 {[%emt 0:00:23]} Re2 {[%emt 0:00:06]} 35. Ng7 {[%emt 0:00:02]} Bg6 {[%emt 0:00:06]} 36. f5 {[%emt 0:00:04]} Kxg7 {[%emt 0:00:05]} 37. fxg6 {[%emt 0:00:01]} hxg6 {[%emt 0:00:03]} 38. h4 {[%emt 0:00:01]} Rxa2 {[%emt 0:00:02]} 39. Rd1 {[%emt 0:00:03]} Rd8 {[%emt 0:00:02]} 40. c4 {[%emt 0:00:02]} d4 {[%emt 0:00:02]} 41. h5 {[%emt 0:00:03]} g5 {[%emt 0:00:02]} 42. Rgd3 {[%emt 0:00:01]} Ra3 {[%emt 0:00:02]} 43. b4 {[%emt 0:00:04]} Rxd3 {[%emt 0:00:02]} 44. Rxd3 {[%emt 0:00:01]} Kh6 {[%emt 0:00:02]} 45. g4 {[%emt 0:00:02]} Kg7 {[%emt 0:00:02]} 46. Kg2 {[%emt 0:00:02]} Kf7 {[%emt 0:00:01]} 47. Kf3 {[%emt 0:00:01]} Ke6 {[%emt 0:00:01]} 48. Ke4 {[%emt 0:00:01]} a6 {[%emt 0:00:03]} 49. Rxd4 {[%emt 0:00:03]} Rh8 {[%emt 0:00:03]} 50. Rd1 {[%emt 0:00:03]} Rc8 {[%emt 0:00:02]} 51. c5 {[%emt 0:00:03]} Rb8 {[%emt 0:00:01]} 52. Rd6+ {[%emt 0:00:02]} Ke7 {[%emt 0:00:02]} 53. Rb6 {[%emt 0:00:01]} Rc8 {[%emt 0:00:03]} 54. Rxa6 {[%emt 0:00:02]} Rb8 {[%emt 0:00:02]} 55. Rb6 {[%emt 0:00:01]} Ra8 {[%emt 0:00:02]} 56. c6 {[%emt 0:00:02]} Rc8 {[%emt 0:00:04]} 57. b5 {[%emt 0:00:02]} Kd6 {[%emt 0:00:02]} 58. Rb7 {[%emt 0:00:03]} 1-0

[Event "Queens Festival Final-D 2022"]
[Site "Tornelo"]
[Date "2022.06.25"]
[Round "8.6"]
[White "Jiang, Tianyu"]
[Black "Amulya Guruprasad"]
[Result "1-0"]
[ECO "B19"]
[WhiteElo "1502"]
[BlackElo "1251"]
[Annotator "NA RC"]
[PlyCount "93"]
[EventDate "2022.06.24"]
[EventType "tourn"]
[EventCountry "NET"]
[SourceTitle "playchess.com"]
[Source "ChessBase"]
[SourceQuality "1"]
[TimeControl "180+2"]

1. Nc3 {[%emt 0:00:02]} d5 {[%emt 0:00:04]} 2. e4 {[%emt 0:00:02]} dxe4 {[%emt 0:00:02]} 3. Nxe4 {[%emt 0:00:01]} Bf5 {[%emt 0:00:02]} 4. Ng3 {[%emt 0:00:02]} Bg6 {[%emt 0:00:02]} 5. Nf3 {[%emt 0:00:02]} c6 {[%emt 0:00:03]} 6. d4 {[%emt 0:00:01]} Nf6 {[%emt 0:00:03]} 7. h4 {[%emt 0:00:02]} h6 {[%emt 0:00:02]} 8. Bc4 {[%emt 0:00:09]} Nbd7 {[%emt 0:00:06]} 9. Qe2 {[%emt 0:00:13]} Nb6 {[%emt 0:00:03]} 10. Ne5 {[%emt 0:00:16]} Nxc4 {[%emt 0:00:24]} 11. Nxg6 {[%emt 0:00:08]} fxg6 {[%emt 0:00:19]} 12. Qxc4 {[%emt 0:00:04]} Nd5 {[%emt 0:00:04]} 13. Qd3 {[%emt 0:00:03]} Qd6 {[%emt 0:00:03]} 14. O-O {[%emt 0:00:02]} O-O-O {[%emt 0:00:04]} 15. Ne4 {[%emt 0:00:10]} Qc7 {[%emt 0:00:09]} 16. Nc5 {[%emt 0:00:04]} Qd6 {[%emt 0:00:09]} 17. c3 {[%emt 0:00:35]} g5 {[%emt 0:00:13]} 18. Qh3+ {[%emt 0:00:09]} Kb8 {[%emt 0:00:05]} 19. hxg5 {[%emt 0:00:01]} e5 {[%emt 0:00:14]} 20. Ne4 {[%emt 0:00:35]} Qc7 {[%emt 0:00:08]} 21. gxh6 {[%emt 0:00:03]} exd4 {[%emt 0:00:04]} 22. cxd4 {[%emt 0:00:04]} gxh6 {[%emt 0:00:04]} 23. Nc5 {[%emt 0:00:03]} Rg8 {[%emt 0:00:18]} 24. Kh1 {[%emt 0:00:07]} Bxc5 {[%emt 0:00:38]} 25. dxc5 {[%emt 0:00:02]} Ka8 {[%emt 0:00:02]} 26. Be3 {[%emt 0:00:10]} Qe5 {[%emt 0:00:06]} 27. Rab1 {[%emt 0:00:32]} h5 {[%emt 0:00:18]} 28. Rfe1 {[%emt 0:00:02]} Rdf8 {[%emt 0:00:02]} 29. Bh6 {[%emt 0:00:05]} Qf6 {[%emt 0:00:02]} 30. Bxf8 {[%emt 0:00:01]} Qxf8 {[%emt 0:00:01]} 31. Qf3 {[%emt 0:00:03]} Qxc5 {[%emt 0:00:03]} 32. Qf7 {[%emt 0:00:04]} Rb8 {[%emt 0:00:02]} 33. Re8 {[%emt 0:00:02]} Nb6 {[%emt 0:00:02]} 34. Rxb8+ {[%emt 0:00:02]} Kxb8 {[%emt 0:00:01]} 35. Qe8+ {[%emt 0:00:02]} Nc8 {[%emt 0:00:03]} 36. Qe3 {[%emt 0:00:02]} Qf5 {[%emt 0:00:02]} 37. Rd1 {[%emt 0:00:03]} a6 {[%emt 0:00:02]} 38. Rd8 {[%emt 0:00:05]} Qb1+ {[%emt 0:00:04]} 39. Kh2 {[%emt 0:00:02]} Qf5 {[%emt 0:00:02]} 40. Qg3+ {[%emt 0:00:01]} Ka7 {[%emt 0:00:03]} 41. Qe3+ {[%emt 0:00:02]} Nb6 {[%emt 0:00:03]} 42. Rd3 {[%emt 0:00:03]} h4 {[%emt 0:00:02]} 43. Rb3 {[%emt 0:00:02]} c5 {[%emt 0:00:02]} 44. Rc3 {[%emt 0:00:03]} Qf6 {[%emt 0:00:02]} 45. Rxc5 {[%emt 0:00:02]} Qd6+ {[%emt 0:00:02]} 46. g3 {[%emt 0:00:02]} hxg3+ {[%emt 0:00:02]} 47. fxg3 {[%emt 0:00:00]} 1-0

[Event "Queens Festival Final-D 2022"]
[Site "Tornelo"]
[Date "2022.06.25"]
[Round "9.2"]
[White "Bakhshizada, Asnad"]
[Black "Jiang, Tianyu"]
[Result "0-1"]
[ECO "D44"]
[WhiteElo "1052"]
[BlackElo "1502"]
[Annotator "NA RC"]
[PlyCount "104"]
[EventDate "2022.06.24"]
[EventType "tourn"]
[EventCountry "NET"]
[SourceTitle "playchess.com"]
[Source "ChessBase"]
[SourceQuality "1"]
[TimeControl "180+2"]

1. d4 {[%emt 0:00:02]} d5 {[%emt 0:00:05]} 2. c4 {[%emt 0:00:02]} c6 {[%emt 0:00:01]} 3. Nc3 {[%emt 0:00:02]} Nf6 {[%emt 0:00:01]} 4. Nf3 {[%emt 0:00:02]} e6 {[%emt 0:00:01]} 5. Bg5 {[%emt 0:00:02]} dxc4 {[%emt 0:00:01]} 6. e4 {[%emt 0:00:02]} b5 {[%emt 0:00:01]} 7. e5 {[%emt 0:00:03]} h6 {[%emt 0:00:01]} 8. Bh4 {[%emt 0:00:02]} g5 {[%emt 0:00:01]} 9. Nxg5 {[%emt 0:00:02]} hxg5 {[%emt 0:00:01]} 10. Bxg5 {[%emt 0:00:02]} Nbd7 {[%emt 0:00:01]} 11. exf6 {[%emt 0:00:08]} Bb7 {[%emt 0:00:02]} 12. a4 {[%emt 0:00:13]} Bb4 {[%emt 0:00:45]} 13. Qf3 {[%emt 0:00:24]} Qb6 {[%emt 0:00:05]} 14. Be3 {[%emt 0:00:08]} O-O-O {[%emt 0:00:52]} 15. axb5 {[%emt 0:00:40]} cxb5 {[%emt 0:00:03]} 16. Qe2 {[%emt 0:00:06]} Nxf6 {[%emt 0:00:20]} 17. d5 {[%emt 0:00:12]} Bc5 {[%emt 0:00:09]} 18. dxe6 {[%emt 0:00:06]} Bxe3 {[%emt 0:00:23]} 19. Qxe3 {[%emt 0:00:09]} Rhe8 {[%emt 0:00:17]} 20. Qxb6 {[%emt 0:00:03]} axb6 {[%emt 0:00:00]} 21. Be2 {[%emt 0:00:15]} Rxe6 {[%emt 0:00:02]} 22. Rd1 {[%emt 0:00:18]} Rde8 {[%emt 0:00:07]} 23. Kf1 {[%emt 0:00:18]} b4 {[%emt 0:00:07]} 24. Nb5 {[%emt 0:00:14]} Rxe2 {[%emt 0:00:06]} 25. Nd6+ {[%emt 0:00:04]} Kc7 {[%emt 0:00:02]} 26. Nxe8+ {[%emt 0:00:04]} Rxe8 {[%emt 0:00:00]} 27. Rc1 {[%emt 0:00:04]} b5 {[%emt 0:00:01]} 28. f3 {[%emt 0:00:03]} Kb6 {[%emt 0:00:04]} 29. Kf2 {[%emt 0:00:02]} Nd5 {[%emt 0:00:05]} 30. Rhd1 {[%emt 0:00:02]} Nf4 {[%emt 0:00:02]} 31. Kg3 {[%emt 0:00:03]} Ne2+ {[%emt 0:00:02]} 32. Kf2 {[%emt 0:00:03]} Nxc1 {[%emt 0:00:01]} 33. Rxc1 {[%emt 0:00:01]} Rd8 {[%emt 0:00:02]} 34. Kg3 {[%emt 0:00:03]} Rd2 {[%emt 0:00:01]} 35. Rb1 {[%emt 0:00:02]} c3 {[%emt 0:00:02]} 36. bxc3 {[%emt 0:00:02]} bxc3 {[%emt 0:00:00]} 37. h4 {[%emt 0:00:02]} c2 {[%emt 0:00:06]} 38. Rc1 {[%emt 0:00:02]} b4 {[%emt 0:00:07]} 39. h5 {[%emt 0:00:01]} b3 {[%emt 0:00:01]} 40. h6 {[%emt 0:00:02]} Rd8 {[%emt 0:00:03]} 41. Kf2 {[%emt 0:00:04]} b2 {[%emt 0:00:02]} 42. Rxc2 {[%emt 0:00:01]} b1=Q {[%emt 0:00:02]} 43. Re2 {[%emt 0:00:02]} Qg6 {[%emt 0:00:02]} 44. Rb2+ {[%emt 0:00:03]} Kc7 {[%emt 0:00:02]} 45. Re2 {[%emt 0:00:02]} Qxh6 {[%emt 0:00:02]} 46. Re7+ {[%emt 0:00:01]} Rd7 {[%emt 0:00:00]} 47. Re2 {[%emt 0:00:03]} Qb6+ {[%emt 0:00:02]} 48. Kg3 {[%emt 0:00:01]} f5 {[%emt 0:00:01]} 49. Kh2 {[%emt 0:00:02]} Rh7+ {[%emt 0:00:03]} 50. Kg3 {[%emt 0:00:04]} Qd4 {[%emt 0:00:02]} 51. Rc2+ {[%emt 0:00:03]} Kb8 {[%emt 0:00:02]} 52. Ra2 {[%emt 0:00:02]} Qh4# {[%emt 0:00:02]} 0-1

[Event "Queens Festival Final-D 2022"]
[Site "Tornelo"]
[Date "2022.06.25"]
[Round "9.3"]
[White "Rajaram, Anika"]
[Black "Vujovic, Vera"]
[Result "0-1"]
[ECO "D43"]
[WhiteElo "1499"]
[BlackElo "1353"]
[Annotator "NA RC"]
[PlyCount "113"]
[EventDate "2022.06.24"]
[EventType "tourn"]
[EventCountry "NET"]
[SourceTitle "playchess.com"]
[Source "ChessBase"]
[SourceQuality "1"]
[TimeControl "180+2"]

1. d4 {[%emt 0:00:02]} d5 {[%emt 0:00:04]} 2. c4 {[%emt 0:00:02]} c6 {[%emt 0:00:02]} 3. Nf3 {[%emt 0:00:02]} Nf6 {[%emt 0:00:01]} 4. Qb3 {[%emt 0:00:03]} e6 {[%emt 0:00:04]} 5. Nc3 {[%emt 0:00:02]} Bd6 {[%emt 0:00:11]} 6. g3 {[%emt 0:00:02]} b6 {[%emt 0:00:02]} 7. Bg2 {[%emt 0:00:04]} Bb7 {[%emt 0:00:03]} 8. O-O {[%emt 0:00:02]} O-O {[%emt 0:00:03]} 9. Nd2 {[%emt 0:00:05]} Bc7 {[%emt 0:00:21]} 10. Rd1 {[%emt 0:00:11]} a5 {[%emt 0:00:09]} 11. e4 {[%emt 0:00:02]} dxc4 {[%emt 0:00:05]} 12. Nxc4 {[%emt 0:00:04]} b5 {[%emt 0:00:02]} 13. Ne3 {[%emt 0:00:10]} a4 {[%emt 0:00:07]} 14. Qc2 {[%emt 0:00:03]} Na6 {[%emt 0:00:17]} 15. a3 {[%emt 0:00:07]} Bb6 {[%emt 0:00:14]} 16. Ne2 {[%emt 0:00:13]} Rc8 {[%emt 0:00:05]} 17. e5 {[%emt 0:00:05]} Nd5 {[%emt 0:00:07]} 18. Be4 {[%emt 0:00:14]} h6 {[%emt 0:00:10]} 19. Nc3 {[%emt 0:00:21]} Qe7 {[%emt 0:00:16]} 20. Qe2 {[%emt 0:00:25]} Rfd8 {[%emt 0:00:10]} 21. Nexd5 {[%emt 0:00:05]} exd5 {[%emt 0:00:07]} 22. Bf5 {[%emt 0:00:05]} Rc7 {[%emt 0:00:09]} 23. Bf4 {[%emt 0:00:02]} Bc8 {[%emt 0:00:06]} 24. e6 {[%emt 0:00:12]} Ra7 {[%emt 0:00:09]} 25. exf7+ {[%emt 0:00:02]} Qxf7 {[%emt 0:00:01]} 26. Be6 {[%emt 0:00:02]} Qxe6 {[%emt 0:00:03]} 27. Qxe6+ {[%emt 0:00:03]} Bxe6 {[%emt 0:00:01]} 28. Re1 {[%emt 0:00:01]} Bf7 {[%emt 0:00:03]} 29. Rad1 {[%emt 0:00:02]} Bc7 {[%emt 0:00:02]} 30. Re7 {[%emt 0:00:06]} Bb8 {[%emt 0:00:06]} 31. Rxa7 {[%emt 0:00:08]} Bxa7 {[%emt 0:00:01]} 32. Re1 {[%emt 0:00:01]} Bb8 {[%emt 0:00:01]} 33. Bxb8 {[%emt 0:00:04]} Nxb8 {[%emt 0:00:03]} 34. Re7 {[%emt 0:00:01]} Rd7 {[%emt 0:00:02]} 35. Re5 {[%emt 0:00:04]} Na6 {[%emt 0:00:02]} 36. f4 {[%emt 0:00:03]} Nc7 {[%emt 0:00:02]} 37. Kf2 {[%emt 0:00:02]} Ne6 {[%emt 0:00:01]} 38. Ke3 {[%emt 0:00:03]} c5 {[%emt 0:00:02]} 39. Nxd5 {[%emt 0:00:09]} cxd4+ {[%emt 0:00:04]} 40. Kd2 {[%emt 0:00:05]} Nc7 {[%emt 0:00:09]} 41. Nb6 {[%emt 0:00:13]} Rd6 {[%emt 0:00:05]} 42. Nc8 {[%emt 0:00:03]} Rd8 {[%emt 0:00:02]} 43. Nb6 {[%emt 0:00:02]} Nd5 {[%emt 0:00:02]} 44. Nxd5 {[%emt 0:00:06]} Rxd5 {[%emt 0:00:02]} 45. Re7 {[%emt 0:00:01]} Rc5 {[%emt 0:00:03]} 46. Rd7 {[%emt 0:00:03]} Rd5 {[%emt 0:00:04]} 47. Rxd5 {[%emt 0:00:03]} Bxd5 {[%emt 0:00:01]} 48. Kd3 {[%emt 0:00:01]} Kf7 {[%emt 0:00:03]} 49. Kxd4 {[%emt 0:00:01]} Bc4 {[%emt 0:00:01]} 50. f5 {[%emt 0:00:03]} Kf6 {[%emt 0:00:02]} 51. g4 {[%emt 0:00:01]} Be2 {[%emt 0:00:04]} 52. h3 {[%emt 0:00:01]} Bf1 {[%emt 0:00:02]} 53. Kc5 {[%emt 0:00:01]} Kg5 {[%emt 0:00:07]} 54. Kb6 {[%emt 0:00:02]} Kh4 {[%emt 0:00:04]} 55. Kc5 {[%emt 0:00:04]} Kxh3 {[%emt 0:00:02]} 56. g5 {[%emt 0:00:01]} hxg5 {[%emt 0:00:01]} 57. f6 {[%emt 0:00:02]} 0-1

[Event "Queens Festival Final-D 2022"]
[Site "Tornelo"]
[Date "2022.06.25"]
[Round "9.4"]
[White "Rozas Lazcano, Valeska"]
[Black "Aydogan, Arya"]
[Result "0-1"]
[ECO "C50"]
[WhiteElo "1551"]
[BlackElo "1409"]
[Annotator "NA RC"]
[PlyCount "94"]
[EventDate "2022.06.24"]
[EventType "tourn"]
[EventCountry "NET"]
[SourceTitle "playchess.com"]
[Source "ChessBase"]
[SourceQuality "1"]
[TimeControl "180+2"]

1. e4 {[%emt 0:00:02]} e5 {[%emt 0:00:04]} 2. Nf3 {[%emt 0:00:04]} Nc6 {[%emt 0:00:02]} 3. Bc4 {[%emt 0:00:03]} Bc5 {[%emt 0:00:02]} 4. O-O {[%emt 0:00:02]} Nf6 {[%emt 0:00:02]} 5. d4 {[%emt 0:00:01]} Bxd4 {[%emt 0:00:01]} 6. Nxd4 {[%emt 0:00:02]} Nxd4 {[%emt 0:00:01]} 7. Bg5 {[%emt 0:00:02]} h6 {[%emt 0:00:02]} 8. Bh4 {[%emt 0:00:02]} d6 {[%emt 0:00:01]} 9. f4 {[%emt 0:00:02]} Be6 {[%emt 0:00:03]} 10. Bxe6 {[%emt 0:00:08]} Nxe6 {[%emt 0:00:01]} 11. fxe5 {[%emt 0:00:02]} dxe5 {[%emt 0:00:01]} 12. Qxd8+ {[%emt 0:00:03]} Rxd8 {[%emt 0:00:02]} 13. Bxf6 {[%emt 0:00:02]} gxf6 {[%emt 0:00:01]} 14. Rxf6 {[%emt 0:00:02]} Rd1+ {[%emt 0:00:19]} 15. Rf1 {[%emt 0:00:02]} Rxf1+ {[%emt 0:00:02]} 16. Kxf1 {[%emt 0:00:02]} Nd4 {[%emt 0:00:02]} 17. Na3 {[%emt 0:00:08]} Ke7 {[%emt 0:00:05]} 18. c3 {[%emt 0:00:01]} Ne6 {[%emt 0:00:04]} 19. Rd1 {[%emt 0:00:09]} c6 {[%emt 0:00:04]} 20. g3 {[%emt 0:00:07]} Nc5 {[%emt 0:00:13]} 21. Re1 {[%emt 0:00:08]} f6 {[%emt 0:00:06]} 22. Nc4 {[%emt 0:00:07]} Rd8 {[%emt 0:00:03]} 23. Re2 {[%emt 0:00:19]} b5 {[%emt 0:00:06]} 24. Nd2 {[%emt 0:00:12]} Rd3 {[%emt 0:00:08]} 25. Kf2 {[%emt 0:00:05]} Rxd2 {[%emt 0:00:17]} 26. Rxd2 {[%emt 0:00:07]} Nxe4+ {[%emt 0:00:01]} 27. Ke3 {[%emt 0:00:01]} Nxd2 {[%emt 0:00:02]} 28. Kxd2 {[%emt 0:00:02]} f5 {[%emt 0:00:15]} 29. Ke3 {[%emt 0:00:02]} h5 {[%emt 0:00:06]} 30. h3 {[%emt 0:00:03]} c5 {[%emt 0:00:06]} 31. b3 {[%emt 0:00:03]} Kd6 {[%emt 0:00:28]} 32. c4 {[%emt 0:00:10]} bxc4 {[%emt 0:00:01]} 33. bxc4 {[%emt 0:00:02]} Kc6 {[%emt 0:00:16]} 34. Kf3 {[%emt 0:00:04]} Kb6 {[%emt 0:00:08]} 35. g4 {[%emt 0:00:02]} hxg4+ {[%emt 0:00:02]} 36. hxg4 {[%emt 0:00:02]} fxg4+ {[%emt 0:00:01]} 37. Kxg4 {[%emt 0:00:02]} Ka5 {[%emt 0:00:05]} 38. Kf5 {[%emt 0:00:03]} Kb4 {[%emt 0:00:05]} 39. Kxe5 {[%emt 0:00:02]} Kxc4 {[%emt 0:00:01]} 40. Ke4 {[%emt 0:00:04]} Kc3 {[%emt 0:00:03]} 41. Kd5 {[%emt 0:00:03]} c4 {[%emt 0:00:02]} 42. Kc5 {[%emt 0:00:03]} Kd3 {[%emt 0:00:03]} 43. a4 {[%emt 0:00:05]} c3 {[%emt 0:00:02]} 44. Kc6 {[%emt 0:00:01]} c2 {[%emt 0:00:01]} 45. Kb7 {[%emt 0:00:02]} c1=Q {[%emt 0:00:02]} 46. Kxa7 {[%emt 0:00:03]} Qa3 {[%emt 0:00:11]} 47. Kb6 {[%emt 0:00:04]} Qxa4 {[%emt 0:00:02]} 0-1